Cogmind - Beta 12 @@@ ROGUE MODE // 2023.12.05 @ 19:46:47 Player: Dosh Result: Destroyed by Cetus Guard with Advanced Variable Charge Gun Performance ------------- Evolutions (4) 2000 Regions Visited (12) 2400 Robots Destroyed (146) 730 Value Destroyed (4689) 4689 Prototype IDs (26) 520 Alien Tech Used (0) 0 Bonus (1948) 1948 TOTAL SCORE: 12287 Bonus ------- High Alert Combat Kills 132 Follower Combat Kills 847 Entered Garrisons 200 Used RIF Installer 500 Aligned with FarCom 300 Friendly Fire -31 Cogmind --------- Core Integrity 0/850 Matter 274/300 Energy 100/100 System Corruption 16% Temperature Cool (18) Movement Core (1350) Ox26 Location -6/Cetus Parts ------- > --- POWER (2) -------- (None) > --- PROPULSION (4) --- (None) > --- UTILITY (7) ------ Huge Storage Unit Improved Signal Interpreter Hacking Suite > --- WEAPON (2) ------- (None) > --- INVENTORY (25) --- Cooled Ion Engine Light Fission Core Advanced Treads Improved Heat Sink Compact Matter Pod (106) Structural Scanner Improved Signal Interpreter Improved Heavy Armor Plating Reflective Plating Hacking Suite Improved Hacking Suite System Shield System Shield Relay Coupler [NC] (35) Relay Coupler [Hunter] (23) Improved System Restoration Module Heavy Mace Peak State ------------ > --- POWER ------------ Improved Deuterium Engine Neutrino Core > --- PROPULSION ------- Light Treads Light Treads Light Treads Light Treads > --- UTILITY ---------- Improved Heat Sink Huge Storage Unit Core Analyzer Hardened Medium Armor Plating Hacking Suite Hacking Suite Improved System Guard > --- WEAPON ----------- Heavy Gauss Cannon Heavy Gauss Cannon > --- INVENTORY -------- Cooled Ion Engine Cooled Ion Engine Cooled Ion Engine Carbon-fiber Leg Carbon-fiber Leg Flexi-carbon Leg Structural Scanner Advanced Targeting Computer Armor Integrity Analyzer Launcher Loader Improved Heavy Armor Plating Improved Hacking Suite System Shield System Shield Relay Coupler [NC] Relay Coupler [Hunter] Shock Rifle Precision Shock Rifle Long-range Missile Launcher Micro-nuke Launcher Heavy Mace Deploy-a-Sentry Deploy-a-Sentry [Rating: 62] Favorites ----------- Power Light Nuclear Core Engine Cooled Ion Engine Power Core Light Nuclear Core Reactor Hybrid Antimatter Reactor Propulsion Light Treads Treads Light Treads Leg Carbon-fiber Leg Wheel Wheel Utility Hacking Suite Device Improved Heat Sink Storage Huge Storage Unit Processor Core Analyzer Hackware Hacking Suite Protection Hardened Light Armor Plating Weapon Ion Cannon Energy Gun Particle Gun Energy Cannon Ion Cannon Ballistic Gun High-powered Shotgun Ballistic Cannon Heavy Gauss Cannon Launcher Grenade Launcher Impact Weapon Heavy Mace Build | -11 -10 -10 -9 -9 -9 -8 -8 -7 -7 -6 -6 -6 ------- Run | Jun Mat Min Mat Min Exi Min Mat Fac Gar Fac Ext Cet Slots Evolved 8 | . . . 2 . . . 2 2 . 2 . . Power 1 | . . . . . . . . . . 1 . . Propulsion 2 | . . . . . . . 1 1 . . . . Utility 5 | . . . 2 . . . 1 1 . 1 . . Weapon . | . . . . . . . . . . . . . Parts Attached 167 | 7 6 . 25 4 1 5 50 1 10 8 46 4 Power 15 | 1 2 . 1 1 . . 3 . 1 1 5 . Engine 7 | 1 . . . . . . 2 . . . 4 . Core 7 | . 2 . 1 1 . . 1 . . 1 1 . Reactor 1 | . . . . . . . . . 1 . . . Propulsion 34 | 2 1 . 6 1 . . 9 . 1 1 13 . Treads 19 | 2 1 . 4 1 . . 4 . 1 . 6 . Leg 6 | . . . 1 . . . 1 . . . 4 . Wheel 9 | . . . 1 . . . 4 . . 1 3 . Hover . | . . . . . . . . . . . . . Flight . | . . . . . . . . . . . . . Utility 48 | 1 2 . 9 . 1 1 13 1 . 4 15 1 Device 11 | . . . 1 . . . 4 . . 2 4 . Storage 7 | 1 1 . 2 . 1 . 1 . . . 1 . Processor 5 | . . . . . . . . . . 1 4 . Hackware 6 | . . . . . . . 5 . . . 1 . Protection 19 | . 1 . 6 . . 1 3 1 . 1 5 1 Artifact . | . . . . . . . . . . . . . Weapon 70 | 3 1 . 9 2 . 4 25 . 8 2 13 3 Energy Gun 17 | 2 . . 5 . . . 6 . 1 . 2 1 Energy Cannon 14 | . . . 3 1 . 3 7 . . . . . Ballistic Gun 9 | 1 1 . . . . . 3 . . . 3 1 Ballistic Cannon 9 | . . . . . . . . . 3 2 3 1 Launcher 11 | . . . 1 1 . 1 4 . . . 4 . Special Weapon . | . . . . . . . . . . . . . Impact Weapon 10 | . . . . . . . 5 . 4 . 1 . Slashing Weapon . | . . . . . . . . . . . . . Piercing Weapon . | . . . . . . . . . . . . . Special Melee Weapon . | . . . . . . . . . . . . . Unidentified Prototypes 3 | . . . . . . . 2 . 1 . . . Corrupted Parts 5 | . . . 2 . . . . . . . 2 1 System Corruption 18 | . . . 5 . . . . . . . 9 4 Parts Lost 66 | . . 2 6 1 . 1 20 . 2 . 21 13 Power 8 | . . . 1 . . . 1 . . . 4 2 Propulsion 24 | . . 1 2 1 . . 7 . . . 10 3 Utility 18 | . . 1 1 . . 1 6 . 2 . 3 4 Weapon 16 | . . . 2 . . . 6 . . . 4 4 Highest Loss Streak 13 | . . 2 2 1 . 1 11 . 2 . 9 13 To Critical Strikes 2 | . . . . . . . . . . . . 2 Average Slot Usage (%) 89 | . 94 77 93 99 78 99 86 86 92 83 84 68 Engine 2 | . 6 . . . . . 4 7 3 . 6 10 Core 6 | . 7 14 10 11 11 11 4 . . 1 3 . Treads 17 | . 27 17 18 21 22 22 10 15 21 20 14 . Wheel 4 | . . . 1 . . . 7 7 7 5 7 10 Device 6 | . . . 6 11 11 11 6 7 4 6 4 3 Storage 9 | . 14 14 11 11 11 11 9 7 7 6 5 6 Processor 2 | . . . . . . . . . . 1 11 14 Hackware 9 | . . . . . . . 22 23 20 13 9 6 Protection 11 | . 9 2 23 22 22 21 3 1 7 6 4 7 Energy Gun 4 | . 5 . 10 . . . 4 7 2 . 1 2 Energy Cannon 5 | . . . 8 22 1 21 4 . . . . . Ballistic Gun 3 | . 22 28 1 . . . 4 7 2 . . 4 Ballistic Cannon 2 | . . . . . . . . . 5 13 7 . Naked Turns . | . . . . . . . . . . . . . Heaviest Build 141 | 11 31 31 114 50 98 110 103 104 126 139 141 108 Greatest Support 80 | 40 40 40 43 40 40 40 40 10 60 60 80 42 Greatest Overweight (x) 42 | . . 1 11 2 2 2 32 10 10 13 42 26 Average Overweight (x) 3 | . . . 1 1 . 2 6 9 3 12 1 4 Largest Inventory Capacity 25 | 8 15 15 25 15 25 25 25 25 25 25 25 25 Average Capacity 21 | 6 11 15 15 15 21 25 25 25 25 25 24 25 Most Carried 25 | 3 11 11 15 15 18 17 24 25 25 25 25 23 Average Carried 17 | 1 6 11 13 13 16 15 17 24 24 23 21 21 Final Capacity 25 | 8 15 15 15 15 25 25 25 25 25 25 25 25 Final Carried 25 | 3 11 11 15 13 18 15 24 25 25 23 23 18 Class Distribution -------------------- 52% | Scavenger-Mutant 25% | Mutant 21% | Hacker-Mutant Dominant Class ---------------- Mutant | -10/Materials Mutant | -10/Mines Mutant | -9/Materials Scavenger-Mutant | -9/Mines Scavenger-Mutant | -9/Exiles Scavenger-Mutant | -8/Mines Hacker-Mutant | -8/Materials Hacker-Mutant | -7/Factory Scavenger-Mutant | -7/Garrison Scavenger-Mutant | -6/Factory Scavenger-Mutant | -6/Extension Scavenger-Mutant | -6/Cetus Resources | -11 -10 -10 -9 -9 -9 -8 -8 -7 -7 -6 -6 -6 ----------- Run | Jun Mat Min Mat Min Exi Min Mat Fac Gar Fac Ext Cet Matter Collected 3637 | 210 248 30 494 73 . 121 732 . 260 107 1362 . Remotely . | . . . . . . . . . . . . . Salvage Created 5390 | . 326 92 1654 98 . 252 1782 . 452 124 610 . Parts 287 | . 17 4 110 8 . 14 89 . 7 3 35 . Haulers Intercepted 4 | . . . . . . . 3 . . 1 . . Recyclers Shooed 4 | . . 2 . . . . 1 . . . 1 . Parts Field Recycled . | . . . . . . . . . . . . . Retrieved Matter . | . . . . . . . . . . . . . Parts Self-Destructed . | . . . . . . . . . . . . . Prevented . | . . . . . . . . . . . . . Kills | -11 -10 -10 -9 -9 -9 -8 -8 -7 -7 -6 -6 -6 ------- Run | Jun Mat Min Mat Min Exi Min Mat Fac Gar Fac Ext Cet Combat Hostiles Destroyed 101 | . 6 2 33 6 . 7 29 . 4 1 13 . Melee 4 | . . . . . . . 4 . . . . . Guns 44 | . 6 2 16 . . . 16 . 1 . 3 . Cannons 35 | . . . 14 2 . 4 3 . 3 1 8 . AOE 15 | . . . 3 4 . 3 4 . . . 1 . Classes Destroyed 14 | . 3 . 5 . . 2 2 . 1 . 1 . Worker 8 | . . . 3 . . . 5 . . . . . Builder 10 | . . . 2 . . . 5 . . . 3 . Tunneler 1 | . . . . . . 1 . . . . . . Hauler 4 | . . . . . . . 3 . . 1 . . Recycler 4 | . . . 1 . . . 3 . . . . . Operator 6 | . 1 . 2 . . . 2 . . . 1 . Watcher 12 | . 1 . 5 . . . 3 . . 1 2 . Swarmer 21 | . . . 7 4 . 3 6 . . . 1 . Grunt 50 | . 6 2 17 2 . 3 17 . . . 3 . Duelist 2 | . . . . . . . 2 . . . . . Sentry 18 | . . . 9 . . . 4 . 1 . 4 . Hunter 4 | . . . . . . 1 . . . . 3 . Programmer 4 | . . . . . . . . . 3 1 . . Behemoth 1 | . . . . . . . . . . . 1 . Thug 1 | . . . . . . . . . . . 1 . Best Kill Streak 6 | . 2 2 5 4 . 3 6 . 3 1 3 . Combat Bots Only 5 | . 2 2 4 4 . 3 5 . 3 1 3 . Max Kills in Single Turn 4 | . 1 1 2 4 . 3 2 . 1 1 1 . Gunslinging . | . . . . . . . . . . . . . Exploded 4 | . . . 2 4 . 3 1 . . . 1 . Melee 1 | . . . . . . . 1 . . . . . Uniques/NPCs Destroyed . | . . . . . . . . . . . . . Combat | -11 -10 -10 -9 -9 -9 -8 -8 -7 -7 -6 -6 -6 -------- Run | Jun Mat Min Mat Min Exi Min Mat Fac Gar Fac Ext Cet Damage Taken 9757 | . 520 83 1441 213 . 132 2340 . 372 61 3101 1494 Core 1656 | . 64 . 219 20 . 39 423 . 37 . 442 412 Absorbed by Shields 271 | . . . . . . . 130 . 141 . . . Redirected to Shielding 98 | . . . 44 . . . . . . . 3 51 Regen/Repaired (Parts) 221 | . 121 . . . . . 100 . . . . . Core Remaining (%) 64 | 100 . 74 . . . 30 23 . 94 . . . Volleys Fired 368 | . 45 8 107 10 . 10 101 . 11 10 61 5 Largest 2 | . 2 2 2 2 . 2 2 . 2 2 2 1 Hottest 122 | . 60 40 110 120 . 120 120 . 122 122 122 57 Shots Fired 673 | . 89 16 199 21 . 20 177 . 22 16 108 5 Gun 385 | . 89 16 116 . . . 123 . 14 . 24 3 Cannon 266 | . . . 80 20 . 19 48 . 8 16 73 2 Launcher 22 | . . . 3 1 . 1 6 . . . 11 . Special . | . . . . . . . . . . . . . Kinetic 317 | . 80 16 40 . . . 66 . 15 16 79 5 Thermal 267 | . 9 . 122 20 . 19 90 . 7 . . . Explosive 22 | . . . 3 1 . 1 6 . . . 11 . Electromagnetic 67 | . . . 34 . . . 15 . . . 18 . Robot Hit Streak 14 | . 9 12 14 3 . 1 10 . 7 8 8 4 Robot Miss Streak 7 | . 5 1 4 3 . 3 5 . 3 3 7 2 Penetration Max 1 | . . . . . . . . . . . . 1 Secondary Targets . | . . . . . . . . . . . . . Shots Hit Robots 450 | . 58 13 125 13 . 8 132 . 27 9 61 4 Core Hits 238 | . 21 5 66 7 . 10 77 . 7 5 36 4 Critical Kills 3 | . . . . . . . 2 . . . 1 . Critical Parts Destroyed 11 | . . 1 . . . . 5 . 2 . 2 1 Critical Strikes 29 | . . 1 1 . . . 9 . 3 1 13 1 Burn 2 | . . . . . . . 2 . . . . . Destroy 5 | . . 1 . . . . . . . . 3 1 Blast 11 | . . . . . . . . . 1 1 9 . Corrupt 2 | . . . 1 . . . . . . . 1 . Smash 9 | . . . . . . . 7 . 2 . . . Melee Attacks 56 | . . . . . . . 30 . 22 . 4 . Impact 56 | . . . . . . . 30 . 22 . 4 . Slashing . | . . . . . . . . . . . . . Piercing . | . . . . . . . . . . . . . Sneak Attacks 8 | . . . . . . . 8 . . . . . Combat Hostiles . | . . . . . . . . . . . . . Follow-up Attacks . | . . . . . . . . . . . . . Damage Inflicted 12424 | . 566 140 2425 498 . 365 3555 . 1349 332 3079 115 Guns 3833 | . 565 137 1027 . . . 1485 . 202 . 314 103 Cannons 4165 | . . . 1077 275 . 208 551 . 271 332 1439 12 Explosions 2416 | . . . 283 223 . 152 509 . . . 1249 . Melee 1862 | . . . . . . . 986 . 876 . . . Ramming 148 | . 1 3 38 . . 5 24 . . . 77 . Kinetic 4155 | . 508 137 306 . . . 877 . 418 332 1462 115 Thermal 3159 | . 57 . 1439 321 . 208 1079 . 55 . . . Explosive 2228 | . . . 207 177 . 152 443 . . . 1249 . Electromagnetic 872 | . . . 435 . . . 146 . . . 291 . Impact 1862 | . . . . . . . 986 . 876 . . . Slashing . | . . . . . . . . . . . . . Piercing . | . . . . . . . . . . . . . Highest Corruption 16 | . . . 5 5 5 5 . . 5 . 12 16 Average Corruption 6 | . . . 4 5 5 5 . . 3 . 11 12 Corruption Purged . | . . . . . . . . . . . . . Corruption Blocked . | . . . . . . . . . . . . . Effects 207 | . . . 53 29 16 25 . . 25 . 57 2 Message Errors 48 | . . . 12 8 2 8 . . 3 . 15 . Matter Fused 58 | . . . 17 5 6 3 . . 8 . 17 2 Heat Flow Errors 26 | . . . 5 6 2 2 . . 4 . 7 . Energy Discharges 17 | . . . 4 3 2 3 . . 3 . 2 . Parts Fused 2 | . . . . . . 1 . . . . 1 . Data Loss (minor) 26 | . . . 4 3 1 4 . . 4 . 10 . Data Loss (major) 14 | . . . 6 1 2 2 . . 2 . 1 . Misfires 4 | . . . 3 1 . . . . . . . . Alerts 7 | . . . . 2 1 2 . . 1 . 1 . Misdirections 1 | . . . . . . . . . . . 1 . Weapon Failures 4 | . . . 2 . . . . . . . 2 . Overload Shots . | . . . . . . . . . . . . . Overflow Damage 770 | . . . 22 37 . 4 292 . 306 1 108 . Projectiles 138 | . . . 16 . . 4 2 . 37 1 78 . Explosions 88 | . . . 6 37 . . 15 . . . 30 . Melee 544 | . . . . . . . 275 . 269 . . . Knockbacks 13 | . . . 1 . . . 1 . 2 1 8 . Impact 2 | . . . 1 . . . 1 . . . . . Kinetic 10 | . . . . . . . . . 2 1 7 . Secondary 1 | . . . . . . . . . . . 1 . Self-Inflicted Damage 232 | . . . 34 7 . 14 147 . . . 30 . Shots 7 | . . . 1 1 . 1 4 . . . . . Rammed 24 | . 3 3 7 . . 3 3 . . . 5 . Targets Rammed 25 | . 3 3 8 . . 3 3 . . . 5 . Kicked . | . . . . . . . . . . . . . Crushed 1 | . . . 1 . . . . . . . . . Highest Temperature 434 | . 91 23 434 299 263 247 322 . 273 120 396 3 Average Temperature 82 | . 29 9 91 119 120 65 49 . 76 46 138 3 Received Heat Transfer 2693 | . 306 48 573 78 . 9 938 . 57 . 468 216 Effects 9 | . . . 4 1 . . . . . . 4 . Shutdowns 2 | . . . 2 . . . . . . . . . Energy Bleed 1 | . . . . . . . . . . . 1 . Interference 1 | . . . . 1 . . . . . . . . Matter Decay 2 | . . . 1 . . . . . . . 1 . Short Circuit 1 | . . . . . . . . . . . 1 . Damage (minor) 2 | . . . 1 . . . . . . . 1 . Siege Activations . | . . . . . . . . . . . . . Robots Corrupted 1 | . . . . . . . . . . . 1 . Combat Hostiles 1 | . . . . . . . . . . . 1 . Parts Fried 17 | . . . 3 . . . 9 . 4 . 1 . Impact Corruptions 17 | . . . . . . . 10 . 7 . . . Robots Melted . | . . . . . . . . . . . . . Combat Hostiles . | . . . . . . . . . . . . . Parts Melted 9 | . . . 4 1 . 2 1 . . . 1 . Heat Transferred 5749 | . 125 . 2564 494 . 333 2122 . 111 . . . Parts Sabotaged . | . . . . . . . . . . . . . Parts Stolen . | . . . . . . . . . . . . . Parts Stripped . | . . . . . . . . . . . . . Power Chain Reactions 2 | . . . 1 . . . 1 . . . . . Missiles Intercepted . | . . . . . . . . . . . . . Alert | -11 -10 -10 -9 -9 -9 -8 -8 -7 -7 -6 -6 -6 ------- Run | Jun Mat Min Mat Min Exi Min Mat Fac Gar Fac Ext Cet Peak Influence 691 | . 247 67 654 402 . 79 430 198 691 376 238 108 Initial 362 | . . 37 26 241 . . 30 195 . 362 52 108 Average 191 | . 89 59 303 229 . 27 163 195 354 245 94 57 Maximum Alert Level 2 | . 1 . 2 2 . . 2 . 2 1 1 . Low Security (%) 64 | 100 98 100 41 25 . 100 72 100 18 28 97 100 Level 1 22 | . 1 . 20 60 . . 21 . 46 71 2 . Level 2 13 | . . . 38 14 . . 5 . 34 . . . Level 3 . | . . . . . . . . . . . . . Level 4 . | . . . . . . . . . . . . . Level 5 . | . . . . . . . . . . . . . High Security . | . . . . . . . . . . . . . Max Security . | . . . . . . . . . . . . . Squads Dispatched 19 | . . . 5 . . . 8 . . 2 4 . Investigation 5 | . . . 2 . . . 2 . . . 1 . Extermination 2 | . . . . . . . . . . 2 . . Reinforcement 9 | . . . 3 . . . 3 . . . 3 . Assault . | . . . . . . . . . . . . . Garrison 3 | . . . . . . . 3 . . . . . Intercept . | . . . . . . . . . . . . . Searches Triggered . | . . . . . . . . . . . . . Construction Impeded 3 | . . . . . . . 2 . . . 1 . Haulers Reinforced . | . . . . . . . . . . . . . Active Scanning Responses . | . . . . . . . . . . . . . Cargo Convoy Interrupts . | . . . . . . . . . . . . . Stealth | -11 -10 -10 -9 -9 -9 -8 -8 -7 -7 -6 -6 -6 --------- Run | Jun Mat Min Mat Min Exi Min Mat Fac Gar Fac Ext Cet Distress Signals 15 | . . . 5 . . . 5 . . . 4 1 Communications Jammed . | . . . . . . . . . . . . . Distress Signals . | . . . . . . . . . . . . . Times Spotted 180 | . 14 2 47 6 . 8 54 . 10 2 32 5 Peak Tracking Total 7 | . 2 2 5 4 . 4 7 . 6 1 4 5 Tactical Retreats 13 | . 2 . 2 . . . 6 . 1 . 2 . Traps | -11 -10 -10 -9 -9 -9 -8 -8 -7 -7 -6 -6 -6 ------- Run | Jun Mat Min Mat Min Exi Min Mat Fac Gar Fac Ext Cet Traps Triggered 6 | . . . 1 . . . 1 . . . 4 . Indirectly . | . . . . . . . . . . . . . Trap Hack Attempts . | . . . . . . . . . . . . . Triggered . | . . . . . . . . . . . . . Disarmed . | . . . . . . . . . . . . . Reprogrammed . | . . . . . . . . . . . . . Reused . | . . . . . . . . . . . . . Traps Extracted . | . . . . . . . . . . . . . Installed . | . . . . . . . . . . . . . Triggered . | . . . . . . . . . . . . . Machines | -11 -10 -10 -9 -9 -9 -8 -8 -7 -7 -6 -6 -6 ---------- Run | Jun Mat Min Mat Min Exi Min Mat Fac Gar Fac Ext Cet Machines Disabled 13 | . 1 . 1 1 . . 4 . 1 1 4 . Max in Single Turn 2 | . 1 . 1 1 . . 1 . 1 1 2 . Garrison Relay 1 | . . . . . . . . . 1 . . . Machines Repaired . | . . . . . . . . . . . . . Machines Sabotaged . | . . . . . . . . . . . . . Overloaded Fab Kills . | . . . . . . . . . . . . . Hacking | -11 -10 -10 -9 -9 -9 -8 -8 -7 -7 -6 -6 -6 --------- Run | Jun Mat Min Mat Min Exi Min Mat Fac Gar Fac Ext Cet Machines Accessed 36 | . 5 . 6 2 1 . 8 3 1 3 7 . Terminals 26 | . 4 . 3 1 . . 6 1 1 3 7 . Fabricators 1 | . . . . . . . . 1 . . . . Repair Stations 2 | . 1 . . . . . 1 . . . . . Recycling Units 1 | . . . 1 . . . . . . . . . Scanalyzers 3 | . . . 2 . . . 1 . . . . . Garrison Access 1 | . . . . . . . . 1 . . . . Total Hacks 82 | . 12 . 20 3 1 . 23 5 2 5 11 . Successful 55 | . 9 . 14 2 1 . 18 4 1 2 4 . Failed 27 | . 3 . 6 1 . . 5 1 1 3 7 . Catastrophic . | . . . . . . . . . . . . . Database Lockouts . | . . . . . . . . . . . . . Manual 38 | . 10 . 10 . 1 . 12 . . 4 1 . Terminals 57 | . 9 . 10 2 . . 17 1 2 5 11 . Fabricators 2 | . . . . . . . . 2 . . . . Repair Stations 5 | . 3 . . . . . 2 . . . . . Recycling Units 4 | . . . 4 . . . . . . . . . Scanalyzers 10 | . . . 6 . . . 4 . . . . . Garrison Access 2 | . . . . . . . . 2 . . . . Terminal Hacks 25 | . 4 . 3 2 1 . 8 1 1 1 4 . Record 5 | . 3 . . . . . 1 . . . 1 . Part Schematic 1 | . . . . . . . . . . . 1 . Open Door 4 | . . . . 1 . . . . . 1 2 . Open DSF 1 | . . . . . . . . 1 . . . . Level Access Points 1 | . . . . . . . 1 . . . . . Emergency Access Points 1 | . . . . . . . . . 1 . . . Terminal Index 2 | . . . 1 . . . 1 . . . . . Alert Level 2 | . 1 . . . . . 1 . . . . . Locate Traps 3 | . . . 1 . . . 2 . . . . . Dispatch Records 1 | . . . . 1 . . . . . . . . Recall Investigation 1 | . . . 1 . . . . . . . . . Recall Reinforcements 2 | . . . . . . . 2 . . . . . EX-Prototype ID Bank 1 | . . . . . 1 . . . . . . . Fabricator Hacks 2 | . . . . . . . . 2 . . . . Network Status 1 | . . . . . . . . 1 . . . . Build 1 | . . . . . . . . 1 . . . . Repair Station Hacks 4 | . 2 . . . . . 2 . . . . . Scan Component 2 | . 1 . . . . . 1 . . . . . Repair 2 | . 1 . . . . . 1 . . . . . Recycling Unit Hacks 3 | . . . 3 . . . . . . . . . Process 1 | . . . 1 . . . . . . . . . Report Inventory 2 | . . . 2 . . . . . . . . . Scanalyzer 9 | . . . 5 . . . 4 . . . . . Insert Component 4 | . . . 2 . . . 2 . . . . . Analyze 5 | . . . 3 . . . 2 . . . . . Garrison Access Hacks 1 | . . . . . . . . 1 . . . . Unlock Access 1 | . . . . . . . . 1 . . . . Unauthorized Hacks 11 | . 3 . 3 . . . 4 . . 1 . . Terminals 11 | . 3 . 3 . . . 4 . . 1 . . Track 1 | . . . 1 . . . . . . . . . Assimilate 3 | . 1 . . . . . 2 . . . . . Botnet 4 | . 1 . 1 . . . 1 . . 1 . . Operators 3 | . 1 . 1 . . . 1 . . . . . Fabricators . | . . . . . . . . . . . . . Repair Stations . | . . . . . . . . . . . . . Recycling Units . | . . . . . . . . . . . . . Scanalyzers . | . . . . . . . . . . . . . Garrison Access . | . . . . . . . . . . . . . Data Cores Recovered 1 | . 1 . . . . . . . . . . . Used . | . . . . . . . . . . . . . Hacking Detections 23 | . 4 . 5 . . . 5 1 1 2 5 . Full Trace Events 4 | . . . 2 . . . 1 . . . 1 . Feedback Events . | . . . . . . . . . . . . . Feedback Blocked . | . . . . . . . . . . . . . Robot Schematics Acquired . | . . . . . . . . . . . . . Robots Built 1 | . . . . . . . . 1 . . . . Authchips . | . . . . . . . . . . . . . Time 58 | . . . . . . . . 58 . . . . Total Robot Build Rating 3 | . . . . . . . . 3 . . . . Part Schematics Acquired 5 | . . . 2 . . . 2 . . . 1 . Parts Built . | . . . . . . . . . . . . . Authchips . | . . . . . . . . . . . . . Time . | . . . . . . . . . . . . . Total Part Build Rating . | . . . . . . . . . . . . . Parts Repaired 2 | . 1 . . . . . 1 . . . . . Time 64 | . 26 . . . . . 38 . . . . . Parts Recycled . | . . . . . . . . . . . . . Recycled Matter 193 | . . . 193 . . . . . . . . . Retrieved Matter . | . . . . . . . . . . . . . Retrieved Components . | . . . . . . . . . . . . . Parts Scanalyzed 4 | . . . 2 . . . 2 . . . . . Part Schematics Acquired 4 | . . . 2 . . . 2 . . . . . Parts Damaged . | . . . . . . . . . . . . . Bothacking | -11 -10 -10 -9 -9 -9 -8 -8 -7 -7 -6 -6 -6 ------------ Run | Jun Mat Min Mat Min Exi Min Mat Fac Gar Fac Ext Cet Used RIF Installer 1 | . . . . . . . . . 1 . . . Robots Hacked . | . . . . . . . . . . . . . Non-combat . | . . . . . . . . . . . . . Combat . | . . . . . . . . . . . . . Robot Hacks Applied . | . . . . . . . . . . . . . Relay Couplers Released 5 | . . . . . . . . . 5 . . . Machine Destruction 5 | . . . . . . . . . 5 . . . Fabnet Peak Effective % . | . . . . . . . . . . . . . Robots Rewired 14 | . . . . . . . . . . . 14 . Allies Hacked . | . . . . . . . . . . . . . Hacks Repelled . | . . . . . . . . . . . . . Allies | -11 -10 -10 -9 -9 -9 -8 -8 -7 -7 -6 -6 -6 -------- Run | Jun Mat Min Mat Min Exi Min Mat Fac Gar Fac Ext Cet Total Allies 23 | . 1 . . 5 . . . 1 . . 16 . Largest Group 8 | . 1 1 1 5 5 2 . 1 1 . 8 . Highest-Rated Group 231 | . 10 10 10 86 86 32 . 15 15 . 231 . Highest-Rated Ally 39 | . 10 10 10 31 31 16 . 15 15 . 39 . Total Orders 1 | . . . . . . . . . 1 . . . STAY 1 | . . . . . . . . . 1 . . . Ally Attacks 165 | . . . . . . 12 . . 22 . 131 . Total Damage 4079 | . . . . . . 144 . . 1271 . 2664 . Kills 29 | . . . . . . . . . 6 . 23 . Allies Corrupted . | . . . . . . . . . . . . . Allies Melted . | . . . . . . . . . . . . . Turrets Deployed 2 | . . . . . . . . . 1 . 1 . Intel | -11 -10 -10 -9 -9 -9 -8 -8 -7 -7 -6 -6 -6 ------- Run | Jun Mat Min Mat Min Exi Min Mat Fac Gar Fac Ext Cet Robot Analysis Total . | . . . . . . . . . . . . . Derelict Logs Recovered 2 | . . . . 2 . . . . . . . . Drone Launches . | . . . . . . . . . . . . . Drone Recoveries . | . . . . . . . . . . . . . Exploration | -11 -10 -10 -9 -9 -9 -8 -8 -7 -7 -6 -6 -6 ------------- Run | Jun Mat Min Mat Min Exi Min Mat Fac Gar Fac Ext Cet Turns Passed 14968 | 87 1005 126 2919 1069 554 968 2371 402 1438 1026 2933 70 Spaces Moved 5917 | 51 511 43 1175 425 230 288 768 157 515 357 1366 31 Core 39 | 6 . . . . . . 6 . . . 26 1 Treads 3507 | 45 511 43 904 425 230 288 127 . 403 8 523 . Legs 36 | . . . 2 . . . 12 . . . 22 . Wheels 2335 | . . . 269 . . . 623 157 112 349 795 30 Hover . | . . . . . . . . . . . . . Flight . | . . . . . . . . . . . . . Fastest Speed 50 | 50 160 160 125 240 160 320 135 215 230 275 50 123 Average Speed 218 | 147 160 221 211 240 239 320 224 219 253 276 185 191 Slowest Speed 2150 | 160 160 240 320 320 320 320 1650 230 320 320 2150 1350 Overloaded Moves . | . . . . . . . . . . . . . Propulsion Burnouts . | . . . . . . . . . . . . . Robots Hopped . | . . . . . . . . . . . . . Cave-ins Triggered . | . . . . . . . . . . . . . Exploration Rate (%) 47 | 5 82 10 85 97 63 66 56 4 36 10 82 19 Regions Visited 12 Branch Regions 6 Pre-discovered Areas 2 | . . . . 2 . . . . . . . . Known Exits Taken 3 | . . . . . . . 1 1 . . 1 . Unknown Exits Taken 8 | 1 1 1 1 1 1 1 . . . 1 . . Scrap Searched 1 | . . . . 1 . . . . . . . . Spaces Dug 17 | . . . 1 . . . 15 . . 1 . . Terrain Destroyed 209 | . . . 30 16 . 12 46 . . 7 97 1 Melee 5 | . . . . . . . 5 . . . . . Projectile 55 | . . . 7 3 . 4 4 . . 7 29 1 AOE 149 | . . . 23 13 . 8 37 . . . 68 . Terrain Rammed . | . . . . . . . . . . . . . Walls Destroyed . | . . . . . . . . . . . . . Machines Disabled . | . . . . . . . . . . . . . Actions | -11 -10 -10 -9 -9 -9 -8 -8 -7 -7 -6 -6 -6 --------- Run | Jun Mat Min Mat Min Exi Min Mat Fac Gar Fac Ext Cet Total 7179 | 60 614 56 1406 453 235 309 1174 215 592 384 1640 41 Wait 443 | . 45 3 66 13 . 4 191 57 11 5 48 . Move 5904 | 50 510 42 1174 424 229 287 767 156 513 356 1365 31 Hop . | . . . . . . . . . . . . . Pick Up 82 | 3 5 . 11 . 3 . 22 1 8 . 29 . Fast Attach 59 | 6 2 . 9 . . . 14 1 4 2 21 . Attach 50 | . . . 8 1 . 3 15 . 1 6 12 4 Detach 28 | . . . 5 . 2 . 6 . 3 5 7 . Swap 58 | 1 4 . 8 3 1 2 21 . 5 . 13 . Drop 42 | . . . 10 2 . . 4 . 13 . 12 1 Fire 368 | . 45 8 107 10 . 10 101 . 11 10 61 5 Melee 56 | . . . . . . . 30 . 22 . 4 . Ram 6 | . . . . . . . 3 . . . 3 . Kick . | . . . . . . . . . . . . . Crush 19 | . 3 3 8 . . 3 . . . . 2 . Escape Stasis 12 | . . . . . . . . . . . 12 . Rewire 52 | . . . . . . . . . 1 . 51 . Trap . | . . . . . . . . . . . . . Miscellaneous . | . . . . . . . . . . . . . Route ------- -11/Junkyard -10/Materials (discovered 4 exits: *Mat x3 / [*Min]) -10/Mines -9/Materials (discovered 4 exits: *Mat x2 / *Min x2) -9/Mines (discovered 3 exits: *Mat x2 / *Exi) -9/Exiles -8/Mines -8/Materials (discovered 3 exits: *Fac x3) -7/Factory (discovered 2 exits: Gar / DSF) -7/Garrison -6/Factory -6/Extension (discovered 3 exits: *Fac x2 / *Cet) -6/Cetus History --------- Turn | Location | Event 8 | -11/Junkyard | Discovered new exit (range 15) 88 | -11/Junkyard | Entered Materials 301 | -10/Materials | Build established: Mutant 459 | -10/Materials | Discovered new exit (range 9) 764 | -10/Materials | Discovered new exit (range 14) 998 | -10/Materials | Repaired Lgt. Treads 1034 | -10/Materials | Discovered new exit (range 16) 1039 | -10/Materials | Discovered new exit (range 14) 1093 | -10/Materials | Entered Mines 1093 | -10/Mines | Accompanied by 1 ally 1141 | -10/Mines | Discovered new exit (range 3) 1219 | -10/Mines | Entered Materials 1219 | -9/Materials | Accompanied by 1 ally 1219 | -9/Materials | Evolved 2 slots: Utility x2 1632 | -9/Materials | Discovered new exit (range 5) 2123 | -9/Materials | Discovered new exit (range 16) 2754 | -9/Materials | Discovered new exit (range 12) 3227 | -9/Materials | Discovered new exit (range 15) 3534 | -9/Materials | Core integrity fell below 50% 3840 | -9/Materials | Build established: Scavenger-Mutant 4138 | -9/Materials | Entered Mines 4223 | -9/Mines | Found the Drone Emporium 4258 | -9/Mines | Learned location of Zion (-7) 4748 | -9/Mines | Discovered new exit (range 15) 4898 | -9/Mines | Discovered new exit (range 6) 4910 | -9/Mines | Assisted by bots powering up and referring to "LRC-V3" 5190 | -9/Mines | Deemed a non-threat by the Exiles lab entrance 5190 | -9/Mines | Discovered new exit (range 5) 5207 | -9/Mines | Entered Exiles 5207 | -9/Exiles | Accompanied by 5 allies 5237 | -9/Exiles | Led the pair of lost Derelicts to a safe place 5256 | -9/Exiles | Met 8R-AWN 5283 | -9/Exiles | Met EX-HEX 5337 | -9/Exiles | Met EX-BIN 5361 | -9/Exiles | Aligned with FarCom system 5363 | -9/Exiles | Given EX-Vault access code 5401 | -9/Exiles | Opened EX-Vault 5416 | -9/Exiles | Found Deploy-a-Sentry 5420 | -9/Exiles | Found Deploy-a-Sentry 5424 | -9/Exiles | Found Deploy-a-Sentry 5511 | -9/Exiles | Warned to stay clear of 0b10 Research branches 5607 | -9/Exiles | Met EX-DEC 5716 | -9/Exiles | Discovered new exit (range 14) 5761 | -9/Exiles | Left Exiles lab with Deploy-a-Sentry 5761 | -9/Exiles | Entered Mines 5761 | -8/Mines | Accompanied by 3 allies 6704 | -8/Mines | Discovered new exit (range 9) 6729 | -8/Mines | Entered Materials 6729 | -8/Materials | Evolved 2 slots: Propulsion x1, Utility x1 7252 | -8/Materials | Lost 4 parts (2n1u1w) 7272 | -8/Materials | Build established: Hacker-Mutant 7448 | -8/Materials | Lost 3 parts (1n1u1w) 7567 | -8/Materials | Identified exit to Factory 7839 | -8/Materials | Repaired Ion Cannon 7955 | -8/Materials | Garrison activated, responded to threat 7967 | -8/Materials | Core integrity fell below 50% 8004 | -8/Materials | Lost 11 parts (1p3n3u4w) 9100 | -8/Materials | Entered Factory 9100 | -7/Factory | Evolved 2 slots: Propulsion x1, Utility x1 9191 | -7/Factory | Identified exit to DSF 9361 | -7/Factory | Fabricated M-14 Sweeper (x1) 9467 | -7/Factory | Identified exit to Garrison 9502 | -7/Factory | Entered Garrison 9502 | -7/Garrison | Warlord forces raided the area 9502 | -7/Garrison | Accompanied by 1 ally 9516 | -7/Garrison | Triggered checkpoint 9526 | -7/Garrison | Triggered checkpoint 9527 | -7/Garrison | Warlord forces retreated 9536 | -7/Garrison | Triggered checkpoint 9646 | -7/Garrison | DAS Turret deployed 9658 | -7/Garrison | Triggered checkpoint 9983 | -7/Garrison | Installed Relay Interface Framework 10004 | -7/Garrison | Discovered new exit (range 14) 10088 | -7/Garrison | Build established: Scavenger-Mutant 10310 | -7/Garrison | Triggered checkpoint 10342 | -7/Garrison | Garrison Relay disabled 10402 | -7/Garrison | Build established: Hacker-Mutant 10434 | -7/Garrison | Found Launcher Loader 10748 | -7/Garrison | Build established: Scavenger-Mutant 10940 | -7/Garrison | Entered Factory 10940 | -6/Factory | Evolved 2 slots: Power x1, Utility x1 11955 | -6/Factory | Discovered new exit (range 6) 11966 | -6/Factory | Entered Extension 12084 | -6/Extension | Rescued a captive Derelict 12182 | -6/Extension | Lost 5 parts (1p4n) 12495 | -6/Extension | Rescued a captive Derelict 13465 | -6/Extension | System corruption reached 10% 13481 | -6/Extension | Spotted B-75 Beast 13491 | -6/Extension | Disrupted transfer network 13501 | -6/Extension | Destroyed B-75 Beast 13536 | -6/Extension | Lost 5 parts (1p1n1u2w) 13586 | -6/Extension | DAS Turret deployed 13589 | -6/Extension | Spotted B-75 Beast 13595 | -6/Extension | Allies destroyed B-75 Beast 13613 | -6/Extension | Lost 9 parts (1p4n2u2w) 14386 | -6/Extension | Core integrity fell below 50% 14521 | -6/Extension | Discovered new exit (range 2) 14521 | -6/Extension | Identified exit to Factory 14731 | -6/Extension | Discovered new exit (range 16) 14732 | -6/Extension | Discovered exit to Factory (range 15) 14755 | -6/Extension | Identified exit to Cetus 14899 | -6/Extension | Entered Cetus 14915 | -6/Cetus | Spotted Cetus Guard 14915 | -6/Cetus | Spotted Cetus Guard 14919 | -6/Cetus | Spotted Cetus Guard 14921 | -6/Cetus | Spotted Cetus Guard 14962 | -6/Cetus | Core integrity fell below 20% 14969 | -6/Cetus | Destroyed by Cetus Guard with Advanced Variable Charge Gun Last Messages --------------- 14952_ Complication: Hpw. Shock Rifle rejected. 14952_ Complication: Imp. Core Shielding rejected. 14953_ Slug penetrates Cetus Guard. 14954_ Penetrated by Slug. 14954_ Armor Integrity Analyzer destroyed. 14955_ Slug penetrates Cetus Guard. 14957_ Penetrated by Slug. 14957_ Slug penetrates Cetus Guard. 14957_ Cld. Ion Engine destroyed. 14957_ Slug penetrates Wall. 14958_ Penetrated by Slug. 14958_ Critical hit (Destroy). 14958_ Gauss Rifle destroyed. 14959_ Dropped Deploy-a-Sentry. 14960_ Penetrated by Slug. 14960_ Slug penetrates Wall. 14963_ Slug penetrates Cetus Guard. 14964_ Slug penetrates Wall. 14966_ Penetrated by Slug. 14969_ Slug penetrates Wall. Map ----- +----------------------------------------------------+ | ?????????????????????????????????????????????????? | | ?????????????????????????????????????????????????? | | ?????????????????????????????????????????????????? | | ?????????????????????????????????????????????????? | | ?????????????????????????????????????????????????? | | ?????????????????????????????????????????????????? | | ?????????????????????????????????????????????????? | | ?????????????????????????????????????????????????? | | ?????????????????????????????????????????????????? | | ?????????????????????????????????????????????????? | | ??????????????????????? ???????????????????????? | | ??????????????????????# ???????????????????????? | | ??????????????????????# ???????????????????????? | | ??????????????????????# ???????????????????????? | | ??????????????????????# ???????????????????????? | | ??????????????????????# ???????????????????????? | | ??????????????????????# ???????????????????????? | | ??????????????????????; #??????????????????????? | | ??????????????????????# #??????????????????????? | | ?????????????????????## #??????????????????????? | | ?????????????????????#; #??????????????????????? | | ?????????????????????#; #??????????????????????? | | ?????????????????????#; #??????????????????????? | | ?????????????????????#; ##?????????????????????? | | ?????????????????????## ;#?????????????????????? | | ?????????????????????#; @##?????????????????????? | | ?????????????????????## ![;#?????????????????????? | | ??????????????????????# ;#?????????????????????? | | ??????????????????????# ##?????????????????????? | | ?????????????????????## ;??????????????????????? | | ?????????????????????#; Y #??????????????????????? | | ?????????????????????##% Y#??????????????????????? | | ??????????????????????#Y Y#??????????????????????? | | ??????????????????????# ;#?????????????????????? | | ?##############"#"##### ;"#### #?????????????? | | ?# +???????????? | | ?# w +???????????? | | ?# +???????????? | | ?#####################;######### ###???????????? | | ?????????????????????###?????????###?????????????? | | ?????????????????????????????????????????????????? | | ?????????????????????????????????????????????????? | | ?????????????????????????????????????????????????? | | ?????????????????????????????????????????????????? | | ?????????????????????????????????????????????????? | | ?????????????????????????????????????????????????? | | ?????????????????????????????????????????????????? | | ?????????????????????????????????????????????????? | | ?????????????????????????????????????????????????? | | ?????????????????????????????????????????????????? | +----------------------------------------------------+ Best States ------------- Heat Dissipation 51 Energy Generation 30 Energy Capacity 1240 Matter Stores 300 Matter Capacity 300 Sight Range 16 Terrain Scan Density 10 Corruption Containment 12 Armor Coverage 600 Resistance: TH 10 Core Shielding 30 Weapon Shielding 33 Evasion (%) 50 Targeting Accuracy 8 Core Analysis 6 Armor Integrity Analysis 30 Recoil Reduction 4 Offensive Hacking 30 Defensive Hacking 10 Item Schematics ----------------- Huge Storage Unit | -9/Materials | Scanalyzed Hacking Suite | -9/Materials | Scanalyzed System Shield | -8/Materials | Scanalyzed Structural Scanner | -8/Materials | Scanalyzed Imp. Proton Missile Launcher | -6/Extension | Hacked Robot Schematics ------------------ None Fabricated ------------ M-14 Sweeper | x1 | -7/Factory | Preloaded Alien Tech Used ----------------- None Achievements -------------- My Command Is Your Wish Challenges ------------ None Game ------ Seed DamperOmegaCutter Manual? 0 Play Time 01:13:41 Cumulative 45.6 hours Start 2023.12.05 @ 16:53:42 End 2023.12.05 @ 19:46:47 Sessions 3 Manual Loads 0 Difficulty Rogue Special Mode None Game No. 74 Rogue 74 Adventurer 0 Explorer 0 Win Type - Total 1 Types 1/0/0/0/0/0/0/0/0 Lore% 26 Gallery% 37 Achievement% 32 Wizard Run 0 Options --------- ASCII 0 Keyboard 1 Movement Numpad Keybinds 0 Fullscreen 2 Font 18/SmallcapsGlow Map View 76x50 Tactical HUD 1 Map Filters NONE Filters NONE Steam 1 RUN: 4b84bea4-dcaf-423d-b219-1167c1826938